[Event "FRA-ch Youth 2017"]
[Site "Belfort"]
[Date "2017.04.20"]
[Round "6"]
[White "Coiffait, Pierre-Basile"]
[Black "Guehtar, Sofiane"]
[Result "1-0"]
[ECO "B27"]
[WhiteElo "2193"]
[BlackElo "1977"]
[Annotator "NA"]
[PlyCount "231"]
[EventDate "2017.??.??"]
[EventCountry "FRA"]
[SourceTitle "playchess.com"]
[Source "ChessBase"]
[SourceQuality "1"]
[TimeControl "5400+30"]

1. e4 {[%emt 0:00:00]} c5 {[%emt 0:00:12]} 2. Nf3 {[%emt 0:00:00]} g6 {[%emt 0:00:15]} 3. d4 {[%emt 0:00:00]} Bg7 {[%emt 0:00:05]} 4. c4 {[%emt 0:01:09]} Qa5+ {[%emt 0:02:25]} 5. Nc3 {[%emt 0:06:23]} Nc6 {[%emt 0:00:45]} 6. Be3 {[%emt 0:01:56] A40: Unusual replies to 1 d4} Nf6 $1 {[%emt 0:00:18]} 7. d5 {[%emt 0:13:32]} (7. Nd2 $11) 7... Nxe4 {[%emt 0:12:34]} 8. dxc6 {[%emt 0:00:44]} Nxc3 {[%emt 0:00:04]} 9. Qd2 {[%emt 0:07:10]} b6 {[%emt 0:03:09]} 10. Bd3 {[%emt 0:05:03]} dxc6 {[%emt 0:26:35] LiveBook: 3 Games} 11. O-O {[%emt 0:08:30]} Na4 {[%emt 0:00:53]} 12. b3 {[%emt 0:11:42]} Nc3 $2 $146 {[%emt 0:15:31]} ({Black should try} 12... Qxd2 $19 13. Bxd2 Bg4 {0-1 (34) Meijers,V (2483)-Hausrath,D (2441) Gelsenkirchen 2001}) 13. Rfe1 {[%emt 0:09:10]} O-O {[%emt 0:21:21]} 14. Bh6 {[%emt 0:03:52]} b5 {[%emt 0:05:45]} 15. a3 {[%emt 0:07:51]} Bf6 {[%emt 0:02:20]} 16. Ne5 {[%emt 0:04:48]} Re8 {[%emt 0:02:09]} 17. Bf4 {[%emt 0:09:06]} Bg7 {[%emt 0:03:13]} 18. Nxc6 {[%emt 0:04:25]} Qb6 {[%emt 0:00:39]} 19. Nxe7+ {[%emt 0:02:12]} Rxe7 {[%emt 0:00:04]} 20. Rxe7 {[%emt 0:00:04]} Be6 {[%emt 0:00:48]} 21. Re1 {[%emt 0:00:26]} Bf6 {[%emt 0:01:18]} 22. Bg5 {[%emt 0:01:37]} Bg7 {[%emt 0:00:28]} 23. Rc1 {[%emt 0:01:01]} b4 {[%emt 0:00:14]} 24. axb4 {[%emt 0:00:19]} cxb4 {[%emt 0:00:05]} 25. Re1 {[%emt 0:00:31]} Qd6 {[%emt 0:00:44]} 26. Qe3 {[%emt 0:00:48]} h6 {[%emt 0:00:32]} 27. Rxe6 $2 {[%emt 0:00:33]} (27. c5 $18 Qc6 28. Bxh6 (28. Rxe6 Qxe6 29. Qxe6 fxe6 $16)) 27... Qxe6 {[%emt 0:00:06]} 28. Qxe6 {[%emt 0:00:30]} fxe6 {[%emt 0:00:03]} 29. Be7 {[%emt 0:00:04]} Kf7 {[%emt 0:00:55]} 30. Bxb4 {[%emt 0:00:37]} Rb8 {[%emt 0:00:05]} 31. Bc5 {[%emt 0:00:52]} Rxb3 {[%emt 0:01:40]} 32. Bxa7 {[%emt 0:00:14]} Ra3 {[%emt 0:00:37]} 33. Bc5 {[%emt 0:00:39]} Ra5 $1 {[%emt 0:00:30]} 34. Bb6 {[%emt 0:00:11]} Ra3 {[%emt 0:00:14]} 35. Bc5 {[%emt 0:00:27]} ({Better is} 35. Bf1 $16) 35... Ra5 {[%emt 0:00:06]} 36. Be3 {[%emt 0:00:07]} Na4 {[%emt 0:00:36]} 37. g3 {[%emt 0:00:43]} Nc5 {[%emt 0:01:04]} 38. Bf1 {[%emt 0:00:08]} g5 {[%emt 0:00:33]} 39. Rb1 {[%emt 0:00:31]} Bf8 {[%emt 0:00:32]} 40. Rb8 {[%emt 0:00:32]} Bd6 {[%emt 0:00:28]} 41. Rb6 {[%emt 0:01:01]} Be7 {[%emt 0:00:19]} 42. Rc6 {[%emt 0:00:34]} Nd7 {[%emt 0:00:38]} 43. Rc7 {[%emt 0:00:43]} Ne5 {[%emt 0:00:26]} 44. Kg2 {[%emt 0:00:39]} Ra4 {[%emt 0:00:32]} 45. Bc5 {[%emt 0:00:20]} Ng6 {[%emt 0:00:39]} 46. Bd3 {[%emt 0:00:38]} Kf6 {[%emt 0:00:04]} 47. Bxe7+ $2 {[%emt 0:00:34]} (47. Bd4+ $18 Kf7 48. Bxg6+ Kxg6 49. Rxe7) 47... Nxe7 {[%emt 0:00:06]} 48. Bc2 {[%emt 0:00:28]} Ra3 {[%emt 0:00:23]} 49. Be4 {[%emt 0:00:30]} Rc3 {[%emt 0:00:13]} 50. h3 {[%emt 0:00:19]} Rc1 {[%emt 0:01:41]} 51. Kf3 {[%emt 0:00:42]} Rc3+ {[%emt 0:00:32]} 52. Ke2 {[%emt 0:00:29]} Rc1 {[%emt 0:00:25]} 53. Kd2 {[%emt 0:00:32]} Ra1 {[%emt 0:00:10]} 54. Ke3 {[%emt 0:00:28]} Re1+ {[%emt 0:00:29]} 55. Kd3 {[%emt 0:00:31]} Rd1+ {[%emt 0:00:09]} 56. Ke2 {[%emt 0:00:09]} Rc1 {[%emt 0:00:12]} 57. Bb7 {[%emt 0:00:42]} Nf5 {[%emt 0:00:18]} 58. Kf3 {[%emt 0:00:36]} Rc3+ {[%emt 0:00:59]} 59. Kg2 {[%emt 0:00:12]} Nd6 {[%emt 0:00:29]} 60. Ba6 {[%emt 0:00:47]} Rc2 {[%emt 0:00:14]} (60... Nf5 $11) 61. Kf3 {[%emt 0:00:33]} Rc3+ {[%emt 0:01:12]} 62. Ke2 {[%emt 0:00:18]} Rc2+ {[%emt 0:00:06]} 63. Ke3 {[%emt 0:00:41]} Rc3+ {[%emt 0:00:49]} 64. Kd2 {[%emt 0:00:33]} Ne4+ {[%emt 0:00:22]} 65. Ke2 {[%emt 0:00:03]} Ke5 {[%emt 0:00:21]} 66. Bb7 {[%emt 0:00:54]} Nd6 {[%emt 0:00:19]} 67. c5 {[%emt 0:00:33]} Nxb7 {[%emt 0:00:50]} 68. Rxb7 {[%emt 0:00:01]} Rxc5 {[%emt 0:00:11]} 69. Rh7 {[%emt 0:00:10]} Ke4 {[%emt 0:01:01]} 70. Rxh6 {[%emt 0:00:20]} Rc2+ {[%emt 0:00:52]} 71. Kf1 {[%emt 0:00:04]} Rc1+ {[%emt 0:00:23]} 72. Kg2 {[%emt 0:00:04]} Ke5 {[%emt 0:00:11]} 73. Kf3 {[%emt 0:01:26]} Rc4 {[%emt 0:00:54]} 74. g4 {[%emt 0:01:23]} Rc3+ {[%emt 0:00:03]} 75. Kg2 {[%emt 0:00:04]} Rc5 {[%emt 0:00:35]} 76. Kf3 $2 {[%emt 0:00:56]} (76. Rg6 $18 Kd6 77. Rg7) 76... Rc3+ {[%emt 0:00:21]} 77. Kg2 {[%emt 0:00:01]} Rc5 {[%emt 0:00:29]} 78. f3 {[%emt 0:00:59]} Kf4 {[%emt 0:01:02]} 79. Rf6+ {[%emt 0:00:14]} Ke5 {[%emt 0:00:04]} 80. Rf8 {[%emt 0:00:10]} Kd6 {[%emt 0:00:26]} (80... Rc1 $1 $14) 81. Rh8 {[%emt 0:00:29]} Ke7 {[%emt 0:00:28]} 82. Kg3 {[%emt 0:00:28]} Rc3 {[%emt 0:00:09]} 83. Rh7+ {[%emt 0:00:57]} Kf6 {[%emt 0:00:08]} 84. Ra7 {[%emt 0:00:08]} Rc1 {[%emt 0:00:32]} 85. Rd7 {[%emt 0:00:28]} Rg1+ {[%emt 0:00:35]} 86. Kf2 {[%emt 0:00:04]} Rh1 {[%emt 0:00:21]} 87. Kg2 {[%emt 0:01:15]} Rb1 {[%emt 0:00:19]} 88. Rd2 {[%emt 0:00:13]} Rb3 {[%emt 0:00:12]} 89. Rf2 {[%emt 0:00:46]} Ke5 {[%emt 0:00:41]} 90. Re2+ {[%emt 0:00:04]} Kf6 {[%emt 0:00:06]} 91. Re4 {[%emt 0:00:55]} Rc3 {[%emt 0:00:08]} 92. f4 {[%emt 0:00:45]} Rc2+ {[%emt 0:00:33]} 93. Kg3 {[%emt 0:00:25]} Rc3+ {[%emt 0:00:05]} 94. Kg2 {[%emt 0:00:01]} Rc2+ {[%emt 0:00:05]} 95. Kf3 {[%emt 0:00:03]} gxf4 {[%emt 0:02:46]} 96. Kxf4 {[%emt 0:00:23]} Rc3 {[%emt 0:00:55]} 97. g5+ {[%emt 0:00:58]} Kf7 {[%emt 0:00:04]} 98. h4 {[%emt 0:00:08]} Rc1 {[%emt 0:00:10]} 99. Re3 {[%emt 0:01:10]} Rc4+ {[%emt 0:00:43]} 100. Kg3 {[%emt 0:00:08]} Rb4 {[%emt 0:00:23]} 101. Rf3+ {[%emt 0:00:21]} Kg7 {[%emt 0:00:06]} 102. h5 {[%emt 0:01:11]} Rb5 {[%emt 0:01:19]} 103. Kg4 {[%emt 0:00:09]} Rb4+ {[%emt 0:00:07]} 104. Rf4 {[%emt 0:00:10]} Rb1 {[%emt 0:00:13]} 105. h6+ {[%emt 0:00:20]} Kg8 {[%emt 0:00:15]} 106. Rf6 {[%emt 0:01:19]} Kh8 {[%emt 0:00:12]} 107. Kh5 {[%emt 0:00:46]} Rb8 {[%emt 0:00:17]} 108. Rxe6 {[%emt 0:00:25]} Kh7 {[%emt 0:00:14]} 109. Re7+ {[%emt 0:00:13]} Kg8 {[%emt 0:00:09]} 110. Kg6 {[%emt 0:00:19]} Rb6+ {[%emt 0:00:05]} 111. Kf5 {[%emt 0:00:04]} Kh8 {[%emt 0:00:16]} 112. Re6 {[%emt 0:01:00]} Rb5+ {[%emt 0:00:04]} 113. Kf6 {[%emt 0:00:14]} Rb8 {[%emt 0:00:10]} 114. g6 {[%emt 0:01:09]} Ra8 {[%emt 0:00:16]} 115. Rd6 {[%emt 0:00:33]} Rb8 {[%emt 0:00:10]} 116. Ke7 {[%emt 0:00:14]} 1-0

[Event "FRA-ch Youth 2017"]
[Site "Belfort"]
[Date "2017.04.20"]
[Round "6"]
[White "Caloone, Thomas"]
[Black "Sarafian, Thomas"]
[Result "1/2-1/2"]
[ECO "C47"]
[WhiteElo "2149"]
[BlackElo "1892"]
[Annotator "NA"]
[PlyCount "179"]
[EventDate "2017.??.??"]
[EventCountry "FRA"]
[SourceTitle "playchess.com"]
[Source "ChessBase"]
[SourceQuality "1"]
[TimeControl "5400+30"]

1. e4 {[%emt 0:03:16]} e5 {[%emt 0:00:39]} 2. Nf3 {[%emt 0:00:17]} Nc6 {[%emt 0:00:06]} 3. Nc3 {[%emt 0:00:04]} Nf6 {[%emt 0:00:05]} 4. d4 {[%emt 0:00:07]} Bb4 {[%emt 0:00:08]} 5. Nxe5 {[%emt 0:01:21] LiveBook: 233 Games} O-O {[%emt 0:00:28]} 6. Nxc6 {[%emt 0:13:26] C47: Scotch Four Knights and Four Knights with 4 g3} dxc6 {[%emt 0:00:18]} 7. Bd3 {[%emt 0:01:08]} Qxd4 {[%emt 0:04:55]} 8. O-O {[%emt 0:00:29]} Bxc3 {[%emt 0:07:45]} 9. bxc3 {[%emt 0:01:40]} Qxc3 {[%emt 0:00:04]} 10. Rb1 {[%emt 0:00:08]} Qe5 $146 {[%emt 0:11:47]} (10... Bg4 11. f3 Be6 12. Rxb7 Rfb8 13. Rxb8+ Rxb8 {½-½ (44) Godena,M (2514)-Halkias,S (2568) Rhodes 2013}) 11. Qf3 {[%emt 0:15:58]} b6 {[%emt 0:14:14]} 12. Bf4 {[%emt 0:15:28]} Qe7 {[%emt 0:03:38]} 13. c4 {[%emt 0:05:54]} Nd7 {[%emt 0:11:02]} 14. Qg3 {[%emt 0:09:18]} f6 {[%emt 0:06:29]} 15. Bxc7 {[%emt 0:11:52]} Ne5 {[%emt 0:00:23]} 16. Bxe5 $1 {[%emt 0:00:04]} fxe5 {[%emt 0:00:08]} 17. f4 {[%emt 0:02:32]} Qc5+ {[%emt 0:09:35]} 18. Kh1 {[%emt 0:00:05]} exf4 {[%emt 0:00:24]} 19. Rxf4 {[%emt 0:00:05]} Rxf4 {[%emt 0:00:04]} 20. Qxf4 {[%emt 0:00:12]} Be6 {[%emt 0:00:06]} 21. e5 {[%emt 0:00:39]} Rf8 {[%emt 0:01:56]} 22. Qh4 {[%emt 0:01:34]} Bf5 {[%emt 0:01:39]} 23. Bxf5 {[%emt 0:01:42]} Rxf5 {[%emt 0:00:08]} 24. e6 {[%emt 0:01:29]} Qf8 {[%emt 0:08:38]} 25. h3 {[%emt 0:02:04]} Re5 {[%emt 0:00:54]} 26. Re1 {[%emt 0:00:58]} Rxe1+ {[%emt 0:00:04]} 27. Qxe1 {[%emt 0:00:07]} Qe7 {[%emt 0:02:10]} 28. Qe5 {[%emt 0:00:18]} Kf8 {[%emt 0:00:36]} 29. Qb8+ {[%emt 0:00:18]} Qe8 {[%emt 0:00:04]} 30. Qd6+ {[%emt 0:00:05]} Qe7 {[%emt 0:00:08]} 31. Qxc6 {[%emt 0:00:10]} g6 {[%emt 0:02:00]} 32. Qd5 {[%emt 0:00:48]} Qc7 {[%emt 0:02:49]} 33. Qf3+ {[%emt 0:03:04]} Ke8 {[%emt 0:00:05]} 34. Qf6 {[%emt 0:00:40]} Qe7 {[%emt 0:00:17]} 35. Qe5 {[%emt 0:00:05]} g5 {[%emt 0:01:38]} 36. Kh2 {[%emt 0:01:19]} Qc5 {[%emt 0:00:24]} 37. Qh8+ {[%emt 0:05:10]} Ke7 {[%emt 0:00:13]} 38. Qxh7+ {[%emt 0:00:03]} Kxe6 {[%emt 0:00:05]} 39. Qe4+ {[%emt 0:00:14]} Kf6 {[%emt 0:02:11]} 40. Kg3 {[%emt 0:00:42]} Qd6+ {[%emt 0:00:56]} 41. Kg4 {[%emt 0:00:32]} Qd7+ {[%emt 0:00:35]} 42. Kf3 {[%emt 0:00:41]} Qd1+ {[%emt 0:01:06]} 43. Qe2 {[%emt 0:00:28]} Qd4 {[%emt 0:00:16]} 44. g3 {[%emt 0:00:06]} a5 {[%emt 0:01:58]} 45. Kg2 {[%emt 0:00:15]} Kg6 {[%emt 0:00:33]} 46. Qc2+ {[%emt 0:01:50]} Kh6 {[%emt 0:00:37]} 47. Kf3 {[%emt 0:01:06]} Qf6+ {[%emt 0:00:16]} 48. Kg2 {[%emt 0:01:05]} Qd4 {[%emt 0:00:08]} 49. Qe2 {[%emt 0:00:27]} Qf6 {[%emt 0:00:23]} 50. Qd2 {[%emt 0:01:08]} Qc6+ {[%emt 0:00:05]} 51. Qd5 {[%emt 0:00:10]} Qf6 {[%emt 0:00:19]} 52. Qb5 {[%emt 0:00:56]} Qd4 {[%emt 0:00:38]} 53. Qc6+ {[%emt 0:00:17]} Kg7 {[%emt 0:00:03]} 54. Qd5 {[%emt 0:00:42]} Qf6 {[%emt 0:01:07]} 55. a4 {[%emt 0:00:42]} Kh6 {[%emt 0:00:32]} 56. Qd3 {[%emt 0:01:09]} Kg7 {[%emt 0:00:52]} 57. Qf3 {[%emt 0:00:16]} Qd4 {[%emt 0:00:06]} 58. Qb7+ {[%emt 0:00:23]} Kh6 {[%emt 0:00:19]} 59. Qc6+ {[%emt 0:00:06]} Kg7 {[%emt 0:00:15]} 60. h4 {[%emt 0:00:29]} gxh4 {[%emt 0:00:31]} 61. gxh4 {[%emt 0:00:11]} Qg4+ {[%emt 0:00:05]} 62. Kf1 {[%emt 0:00:43]} Qf4+ {[%emt 0:00:43]} 63. Ke2 {[%emt 0:00:12]} Qg4+ {[%emt 0:00:18]} 64. Kd3 {[%emt 0:00:25]} Qd1+ {[%emt 0:00:15]} 65. Kc3 {[%emt 0:00:31]} Qa1+ {[%emt 0:00:14]} 66. Kc2 {[%emt 0:00:12]} Qa2+ {[%emt 0:00:12]} 67. Kd3 {[%emt 0:00:08]} Qf2 {[%emt 0:02:47]} 68. Qc7+ {[%emt 0:01:05]} Kh6 {[%emt 0:00:56]} 69. Qe7 {[%emt 0:00:33]} Qf1+ {[%emt 0:02:00]} 70. Qe2 {[%emt 0:00:26]} Qf5+ {[%emt 0:00:37]} 71. Qe4 {[%emt 0:00:29]} Qd7+ $16 {[%emt 0:01:24]} ({Don't take} 71... Qxe4+ $2 72. Kxe4 Kh5 73. Kd5 Kxh4 74. Kc6 $18) 72. Qd4 {[%emt 0:00:08]} Qxa4 {[%emt 0:00:08]} 73. Qxb6+ {[%emt 0:00:05]} Kg7 {[%emt 0:00:12]} 74. Kc3 {[%emt 0:01:03]} Qa3+ {[%emt 0:00:36]} 75. Kc2 {[%emt 0:00:18]} Kh7 {[%emt 0:00:51]} 76. c5 {[%emt 0:00:31]} Qa4+ {[%emt 0:00:17]} 77. Kc3 {[%emt 0:00:28]} Qxh4 {[%emt 0:00:05]} 78. c6 {[%emt 0:00:19]} Qf6+ {[%emt 0:00:31]} 79. Kb3 {[%emt 0:00:33]} Qe6+ {[%emt 0:00:12]} 80. Ka4 {[%emt 0:00:35]} Qa2+ {[%emt 0:00:10]} 81. Kb5 {[%emt 0:00:13]} Qe2+ {[%emt 0:00:12]} 82. Kxa5 {[%emt 0:00:43]} Qa2+ {[%emt 0:00:06]} 83. Kb4 {[%emt 0:00:25]} Qb2+ {[%emt 0:00:14]} 84. Kc5 {[%emt 0:00:21]} Qf2+ {[%emt 0:00:01]} 85. Kb5 {[%emt 0:00:07]} Qe2+ {[%emt 0:00:08]} 86. Ka4 {[%emt 0:00:31]} Qa2+ {[%emt 0:00:06]} 87. Kb4 {[%emt 0:00:06]} Qb2+ {[%emt 0:00:05]} 88. Ka5 {[%emt 0:00:07]} Qa2+ {[%emt 0:00:03]} 89. Kb5 {[%emt 0:00:03]} Qe2+ 90. Kc5 1/2-1/2

[Event "FRA-ch Youth 2017"]
[Site "Belfort"]
[Date "2017.04.20"]
[Round "6"]
[White "Bacrot, Alexandre"]
[Black "Poulet, Benoit"]
[Result "1/2-1/2"]
[ECO "B31"]
[WhiteElo "2143"]
[BlackElo "1837"]
[Annotator "NA"]
[PlyCount "69"]
[EventDate "2017.??.??"]
[EventCountry "FRA"]
[SourceTitle "playchess.com"]
[Source "ChessBase"]
[SourceQuality "1"]
[TimeControl "5400+30"]

1. e4 {[%emt 0:00:00]} c5 {[%emt 0:00:12]} 2. Nf3 {[%emt 0:00:00]} Nc6 {[%emt 0:00:13]} 3. Bb5 {[%emt 0:00:38]} g6 {[%emt 0:00:21]} 4. O-O {[%emt 0:00:44]} Bg7 {[%emt 0:00:43]} 5. c3 {[%emt 0:00:52] LiveBook: 2215 Games} Nf6 {[%emt 0:00:42]} 6. Re1 {[%emt 0:01:18]} O-O {[%emt 0:00:49]} 7. d3 {[%emt 0:10:10]} a6 {[%emt 0:08:22] B31: Sicilian: 2...Nc6 3 Bb5 g6} (7... d6 8. Nbd2 Bd7 9. Nf1 Ne5 10. Bxd7 Nxf3+ 11. Qxf3 Nxd7 12. a4 Ne5 13. Qe2 Nc6 14. Be3 e5 15. f4 exf4 16. Bxf4 {½-½ (24) Burlacu,B (2339)-Flumbort,A (2469) Austria 2014}) 8. Bxc6 {[%emt 0:01:00]} dxc6 {[%emt 0:00:10]} 9. e5 {[%emt 0:02:55]} Nd5 {[%emt 0:01:19]} 10. Na3 $146 {[%emt 0:10:00]} (10. Qa4 Bf5 11. Qh4 Bxd3 12. c4 Nb4 13. Bh6 f6 14. Bxg7 Kxg7 15. Nc3 {0-1 (32) Kornthaler,R (2081)-Gerhold,M (2244) Austria 2001}) 10... Qc7 {[%emt 0:18:06]} 11. h3 {[%emt 0:02:58]} Rd8 {[%emt 0:01:45]} 12. Qe2 {[%emt 0:00:54]} h6 {[%emt 0:08:25]} 13. Bd2 {[%emt 0:08:49]} a5 {[%emt 0:15:38]} 14. Rad1 {[%emt 0:08:07]} b6 {[%emt 0:00:23]} 15. Nb1 {[%emt 0:05:09]} Qd7 {[%emt 0:07:09]} 16. Bc1 {[%emt 0:08:16]} Ba6 {[%emt 0:03:01]} 17. b3 {[%emt 0:12:47]} Nc7 {[%emt 0:01:50]} 18. c4 {[%emt 0:00:11]} Ne6 {[%emt 0:00:41]} 19. Be3 {[%emt 0:04:09]} Qc7 {[%emt 0:02:17]} 20. d4 {[%emt 0:00:14]} cxd4 {[%emt 0:00:53]} 21. Nxd4 {[%emt 0:00:05]} Nxd4 {[%emt 0:01:57]} 22. Bxd4 {[%emt 0:00:36]} c5 {[%emt 0:00:05]} 23. Bc3 {[%emt 0:03:39]} e6 {[%emt 0:01:53]} 24. f3 {[%emt 0:08:19]} Rxd1 {[%emt 0:09:43]} 25. Rxd1 {[%emt 0:00:06]} Rd8 {[%emt 0:00:08]} 26. Rxd8+ {[%emt 0:06:31]} Qxd8 {[%emt 0:00:04]} 27. Nd2 {[%emt 0:00:07]} Bb7 {[%emt 0:00:30]} 28. Kf1 {[%emt 0:03:46]} Qd7 {[%emt 0:01:33]} 29. a4 {[%emt 0:00:35]} h5 {[%emt 0:01:37]} 30. Ke1 {[%emt 0:00:19]} Qd8 {[%emt 0:02:20]} 31. Kd1 {[%emt 0:00:35]} Bh6 {[%emt 0:00:46]} 32. Kc2 {[%emt 0:00:06]} Qg5 {[%emt 0:00:48]} 33. Kb2 {[%emt 0:00:41]} Qe3 {[%emt 0:02:16]} 34. Qxe3 {[%emt 0:01:31]} Bxe3 {[%emt 0:00:04]} 35. Nf1 $11 {[%emt 0:00:25]} 1/2-1/2

[Event "FRA-ch Youth 2017"]
[Site "Belfort"]
[Date "2017.04.20"]
[Round "6"]
[White "Lever, Erwan"]
[Black "Bouvet, Florian"]
[Result "1/2-1/2"]
[ECO "D85"]
[WhiteElo "2129"]
[BlackElo "2183"]
[Annotator "NA"]
[PlyCount "78"]
[EventDate "2017.??.??"]
[EventCountry "FRA"]
[SourceTitle "playchess.com"]
[Source "ChessBase"]
[SourceQuality "1"]
[TimeControl "5400+30"]

1. d4 {[%emt 0:00:00]} Nf6 {[%emt 0:00:22]} 2. c4 {[%emt 0:00:00]} g6 {[%emt 0:00:39]} 3. Nc3 {[%emt 0:00:00]} d5 {[%emt 0:00:04]} 4. cxd5 {[%emt 0:00:00]} Nxd5 {[%emt 0:00:05]} 5. e4 {[%emt 0:00:00]} Nxc3 {[%emt 0:00:04]} 6. bxc3 {[%emt 0:00:03]} Bg7 {[%emt 0:00:05]} 7. Qa4+ {[%emt 0:00:06]} Nd7 {[%emt 0:00:55]} 8. Nf3 {[%emt 0:00:10]} O-O {[%emt 0:00:43]} 9. Be2 c6 {[%emt 0:08:58]} (9... e5 $11) 10. O-O {[%emt 0:02:53] D85: Exchange Grünfeld: Unusual White 7th moves and lines with 7 Nf3} Qc7 {[%emt 0:08:59]} 11. Be3 {[%emt 0:20:16]} e5 {[%emt 0:09:21]} 12. Rac1 $146 {[%emt 0:00:14]} ({Better is} 12. Qc2 $16 c5 13. Rac1 b6 14. h3 Bb7 15. d5 Nf6 16. Nd2 {0-1 (44) Tunik,G (2475)-Mikhalevski,V (2495) Beersheba 1996}) 12... b6 {[%emt 0:03:10]} 13. dxe5 {[%emt 0:09:13]} (13. h3 $16) 13... Re8 {[%emt 0:13:43]} 14. c4 {[%emt 0:13:17]} Bb7 {[%emt 0:09:46]} 15. c5 {[%emt 0:07:47]} Bf8 {[%emt 0:01:20]} 16. cxb6 {[%emt 0:11:51]} axb6 {[%emt 0:00:07]} 17. Qb3 {[%emt 0:01:17]} Nc5 {[%emt 0:10:38]} 18. Bxc5 {[%emt 0:01:33]} Bxc5 {[%emt 0:00:07]} 19. Rfd1 {[%emt 0:04:31]} Ra3 {[%emt 0:05:13]} 20. Qc2 {[%emt 0:00:57]} Qe7 {[%emt 0:03:00]} 21. h4 {[%emt 0:04:48]} Rea8 {[%emt 0:01:32]} 22. Bc4 {[%emt 0:00:12]} Ba6 {[%emt 0:01:17]} 23. Bb3 {[%emt 0:00:22]} Bc8 {[%emt 0:06:53]} 24. Ng5 {[%emt 0:01:08]} Be6 {[%emt 0:00:04]} 25. Nxe6 {[%emt 0:00:18]} fxe6 {[%emt 0:00:04]} 26. Qc4 {[%emt 0:01:45]} Re8 {[%emt 0:00:07]} 27. g3 {[%emt 0:01:07]} Ra7 {[%emt 0:02:16] [#]} 28. Rc2 {[%emt 0:02:01]} (28. Kg2 $1 $18) 28... g5 {[%emt 0:01:26]} 29. hxg5 {[%emt 0:02:39]} Qxg5 {[%emt 0:00:06]} 30. Qc3 {[%emt 0:00:09]} Rg7 {[%emt 0:01:54]} 31. Kg2 {[%emt 0:00:12]} h5 {[%emt 0:00:15]} 32. Rcd2 {[%emt 0:02:51]} h4 {[%emt 0:01:54]} 33. Rd7 {[%emt 0:00:05]} Rg6 $11 {[%emt 0:01:34]} ({Of course not} 33... h3+ $6 34. Kh2 $16 (34. Kxh3 Rf8 35. Bxe6+ Kh8 $11)) 34. R1d3 {[%emt 0:01:26]} h3+ {[%emt 0:00:31]} 35. Kxh3 {[%emt 0:02:23]} Bxf2 {[%emt 0:00:18]} 36. Kg2 {[%emt 0:00:09]} Bc5 {[%emt 0:00:46]} 37. Rf3 {[%emt 0:00:40]} Qh5 {[%emt 0:00:26]} 38. Rf6 {[%emt 0:02:51]} Qe2+ {[%emt 0:02:10]} 39. Kh3 {[%emt 0:00:04]} Qh5+ {[%emt 0:04:01]} 1/2-1/2

[Event "FRA-ch Youth 2017"]
[Site "Belfort"]
[Date "2017.04.20"]
[Round "6"]
[White "Heliot, Xabi"]
[Black "Eugene, Floryan"]
[Result "1-0"]
[ECO "E63"]
[WhiteElo "2081"]
[BlackElo "2271"]
[Annotator "NA"]
[PlyCount "105"]
[EventDate "2017.??.??"]
[EventCountry "FRA"]
[SourceTitle "playchess.com"]
[Source "ChessBase"]
[SourceQuality "1"]
[TimeControl "5400+30"]

1. c4 {[%emt 0:00:00]} Nf6 {[%emt 0:00:06]} 2. Nf3 {[%emt 0:00:00]} g6 {[%emt 0:00:05]} 3. g3 {[%emt 0:00:00]} Bg7 {[%emt 0:00:05]} 4. Bg2 {[%emt 0:00:00]} O-O {[%emt 0:00:19]} 5. Nc3 {[%emt 0:00:00]} d6 {[%emt 0:01:03]} 6. O-O {[%emt 0:00:00]} Nc6 {[%emt 0:01:24]} 7. d4 {[%emt 0:02:28]} a6 {[%emt 0:01:08]} 8. Qc2 {[%emt 0:14:42]} Rb8 {[%emt 0:03:26] LiveBook: 13 Games} 9. Rd1 {[%emt 0:04:11]} Bd7 {[%emt 0:05:40]} 10. Nd5 $146 {[%emt 0:22:51] E63: King's Indian: Fianchetto: Panno Variation with 7...a6} (10. e4 e5 11. dxe5 dxe5 12. Nd5 Bg4 13. Bg5 Nd4 14. Rxd4 exd4 15. e5 Bf5 16. Qc1 h6 17. Nxf6+ Kh8 18. Bxh6 Bxf6 19. exf6 Qxf6 20. Bxf8 Rxf8 {1-0 (66) Koneru,H (2557)-Kashlinskaya,A (2429) Doha 2016}) 10... b5 {[%emt 0:06:34]} 11. Nxf6+ {[%emt 0:01:51]} Bxf6 {[%emt 0:00:13]} 12. Bh6 {[%emt 0:00:19]} Re8 {[%emt 0:01:20]} 13. c5 {[%emt 0:00:37]} d5 {[%emt 0:32:44]} 14. Ne5 {[%emt 0:16:01]} e6 {[%emt 0:00:08]} 15. Bf4 {[%emt 0:02:30]} g5 {[%emt 0:08:44]} 16. Nxc6 {[%emt 0:02:00]} Bxc6 {[%emt 0:00:07]} 17. Be5 {[%emt 0:00:10]} Bg7 {[%emt 0:02:45]} 18. Bxg7 {[%emt 0:08:15]} Kxg7 {[%emt 0:00:18]} 19. b4 {[%emt 0:00:03]} Qf6 {[%emt 0:04:33]} 20. e3 {[%emt 0:06:28]} Rbd8 {[%emt 0:00:23]} 21. Qe2 {[%emt 0:01:47]} e5 {[%emt 0:07:27]} 22. Qb2 {[%emt 0:03:27]} e4 {[%emt 0:00:21]} 23. Qe2 {[%emt 0:03:22]} Bd7 {[%emt 0:00:10]} 24. Qh5 {[%emt 0:01:22]} Bf5 {[%emt 0:01:00]} 25. a4 {[%emt 0:01:40]} Rb8 {[%emt 0:00:41]} 26. axb5 {[%emt 0:00:38]} Rxb5 {[%emt 0:00:19]} 27. Bf1 {[%emt 0:00:06]} Rxb4 {[%emt 0:00:04]} 28. Rxa6 {[%emt 0:00:07]} c6 {[%emt 0:00:13]} 29. g4 {[%emt 0:02:29]} Bg6 {[%emt 0:00:43]} (29... Bd7 $15 30. Bg2 Reb8) 30. Qh3 {[%emt 0:00:02]} h5 {[%emt 0:01:21]} 31. Rb6 {[%emt 0:00:52]} Rb8 {[%emt 0:00:10]} 32. Rxb8 {[%emt 0:00:14]} Rxb8 {[%emt 0:00:04]} 33. Qg3 {[%emt 0:00:05]} Rb2 {[%emt 0:00:04]} 34. h3 {[%emt 0:00:09]} hxg4 {[%emt 0:02:59]} 35. hxg4 {[%emt 0:00:05]} Qe6 {[%emt 0:00:23]} 36. Ra1 {[%emt 0:00:32]} f6 {[%emt 0:00:29] [#]} (36... Rc2 $142) 37. Bh3 $2 {[%emt 0:02:31]} (37. Qc7+ $1 $18 Bf7 38. Bh3) 37... Qc8 {[%emt 0:00:21]} 38. Ra7+ {[%emt 0:00:25]} Rb7 {[%emt 0:03:29]} 39. Rxb7+ {[%emt 0:00:54]} Qxb7 {[%emt 0:00:07]} 40. Bf1 {[%emt 0:01:06]} Qb1 {[%emt 0:00:18]} 41. Qc7+ {[%emt 0:01:05]} Bf7 {[%emt 0:00:04]} 42. Qxc6 {[%emt 0:00:12]} f5 {[%emt 0:00:12]} 43. Qd7 {[%emt 0:00:36]} f4 {[%emt 0:00:15]} 44. Qf5 {[%emt 0:00:03]} fxe3 {[%emt 0:00:52]} 45. Qxg5+ {[%emt 0:00:02]} Kf8 {[%emt 0:00:11]} 46. fxe3 {[%emt 0:00:15]} Qc1 {[%emt 0:00:59]} 47. Qf4 {[%emt 0:00:04]} Kg8 {[%emt 0:00:28]} 48. Kg2 {[%emt 0:01:21]} Be6 {[%emt 0:01:07]} 49. Kg3 {[%emt 0:01:27]} Qd1 {[%emt 0:01:22]} 50. Kh4 {[%emt 0:00:34]} Kh7 {[%emt 0:01:08]} 51. Kg5 {[%emt 0:00:33]} Qb3 {[%emt 0:03:24]} 52. Qc7+ {[%emt 0:00:32]} Kh8 {[%emt 0:00:15]} 53. Kf6 {[%emt 0:00:31]} 1-0